bitfinex/quotes_SOLUSD_20241126
["timestamp","ask_amount","ask_price","bid_price","bid_amount"]
[1732645757855,5.0,225.77,225.7,20.68119785]
[1732645758024,5.0,225.78,225.7,20.68119785]
[1732645758224,5.0,225.78,225.72,20.68119785]
[1732645759648,5.0,225.78,225.72,25.11129785]
[1732645759857,5.0,225.78,225.74,20.68119785]
[1732645760636,5.0,225.78,225.72,20.68119785]
[1732645761155,5.0,225.78,225.68,4.431]
[1732645761156,5.0,225.78,225.74,20.68119785]
[1732645761542,5.0,225.78,225.73,20.68119785]
[1732645761940,5.0,225.78,225.63,36.986884]
[1732645761941,5.0,225.72,225.67,20.68119785]
[1732645762529,5.0,225.72,225.63,4.432]
[1732645762530,25.68119785,225.75,225.68,20.68119785]
[1732645762734,5.0,225.75,225.7,25.11159785]
[1732645762949,5.0,225.79,225.73,20.68119785]
[1732645763261,5.0,225.77,225.72,20.68119785]
[1732645764056,25.68119785,225.81,225.74,20.68119785]
[1732645764353,5.0,225.79,225.74,20.68119785]
[1732645764658,5.0,225.79,225.73,20.68119785]
[1732645764867,5.0,225.77,225.71,20.68119785]
[1732645765942,25.68119785,225.77,225.71,20.68119785]
[1732645766343,5.0,225.77,225.72,4.4302]
[1732645767063,25.68119785,225.77,225.72,4.4302]
[1732645767255,5.0,225.77,225.72,20.68119785]
[1732645767441,5.0,225.77,225.73,20.68119785]
[1732645767755,20.68119785,225.74,225.67,20.68119785]
[1732645767961,20.68119785,225.73,225.66,20.68119785]
[1732645768148,20.68119785,225.73,225.67,20.68119785]
[1732645768352,5.0,225.75,225.7,20.68119785]
[1732645768537,5.0,225.75,225.69,20.68119785]
[1732645768743,25.68119785,225.75,225.68,20.68119785]
[1732645768957,5.0,225.75,225.69,20.68119785]
[1732645769271,25.68119785,225.75,225.69,20.68119785]
[1732645769565,5.0,225.75,225.7,25.11179785]
[1732645769743,5.0,225.75,225.7,4.4306]
[1732645769948,25.68119785,225.75,225.7,4.4306]
[1732645770763,20.68119785,225.74,225.67,20.68119785]
[1732645770945,27.91497261,225.83,225.62,6.0989]
[1732645770946,20.68119785,225.71,225.64,20.68119785]
[1732645771552,5.0,225.63,225.52,11.085]
[1732645771741,20.68119785,225.62,225.55,20.68119785]
[1732645771941,5.0,225.59,225.45,13.21]
[1732645772240,25.68119785,225.59,225.52,20.68119785]
[1732645772449,5.0,225.59,225.47,11.0875]
[1732645772653,5.0,225.57,225.47,11.0875]
[1732645773041,5.0,225.59,225.47,11.0875]
[1732645773262,5.0,225.57,225.47,11.0875]
[1732645773467,5.0,225.57,225.54,20.68119785]
[1732645773838,5.0,225.59,225.54,20.68119785]
[1732645774252,5.0,225.61,225.57,20.68119785]
[1732645774643,5.0,225.63,225.6,20.68119785]
[1732645774856,5.0,225.63,225.59,20.68119785]
[1732645775268,5.0,225.6,225.56,20.68119785]
[1732645775442,5.0,225.6,225.55,20.68119785]
[1732645776463,5.0,225.6,225.56,20.68119785]
[1732645777365,5.0,225.6,225.56,25.11439785]
[1732645777751,5.0,225.62,225.58,20.68119785]
[1732645778449,5.0,225.62,225.57,20.68119785]
[1732645779157,5.0,225.62,225.58,20.68119785]
[1732645779668,5.0,225.66,225.61,20.68119785]
[1732645779968,5.0,225.68,225.65,20.68119785]
[1732645780347,5.0,225.7,225.67,20.68119785]
[1732645780547,5.0,225.68,225.66,20.68119785]
[1732645781368,5.0,225.7,225.67,20.68119785]
[1732645781560,5.0,225.75,225.69,20.68119785]
[1732645781759,5.0,225.8,225.74,20.68119785]
[1732645781957,5.0,225.8,225.79,20.68119785]
[1732645782156,5.0,225.8,225.72,6.1179]
[1732645782455,5.0,225.8,225.75,20.68119785]
[1732645782655,5.0,225.74,225.68,15.5086]
[1732645783053,5.0,225.74,225.68,4.431]
[1732645783252,5.0,225.72,225.68,4.431]
[1732645783474,5.0,225.72,225.66,4.4312]
[1732645783665,25.68119785,225.7,225.66,4.4312]
[1732645784473,5.0,225.8,225.64,4.4316]
[1732645784474,25.68119785,225.68,225.64,4.4316]
[1732645785054,25.68119785,225.66,225.64,4.4316]
[1732645785573,5.0,225.66,225.61,25.11359785]
[1732645785978,5.0,225.66,225.61,4.4324]
[1732645786166,5.0,225.64,225.61,4.4324]
[1732645786357,5.0,225.61,225.58,6.1179]
[1732645786556,5.0,225.61,225.58,4.4329]
[1732645787671,5.0,225.61,225.58,20.68119785]
[1732645788265,5.0,225.63,225.59,20.68119785]
[1732645788963,5.0,225.63,225.57,4.4332]
[1732645788964,25.68119785,225.63,225.57,4.4332]
[1732645789169,20.68119785,225.62,225.57,4.4332]
[1732645789352,5.0,225.63,225.57,25.11439785]
[1732645789555,5.0,225.63,225.57,4.4332]
[1732645789785,25.68119785,225.63,225.57,25.11439785]
[1732645790157,5.0,225.63,225.57,25.11439785]
[1732645790376,5.0,225.63,225.58,20.68119785]
[1732645790563,20.68119785,225.62,225.57,4.4332]
[1732645792279,25.68119785,225.63,225.57,25.11439785]
[1732645792585,5.0,225.56,225.52,6.1179]
[1732645793355,5.0,225.56,225.5,20.68119785]
[1732645793600,5.0,225.56,225.51,20.68119785]
[1732645794080,5.0,225.6,225.56,4.4334]
[1732645794379,5.0,225.59,225.56,25.11459785]
[1732645794577,5.0,225.59,225.56,4.4334]
[1732645795079,5.0,225.56,225.52,20.68119785]
[1732645795283,5.0,225.56,225.48,11.0871]
[1732645795463,5.0,225.52,225.47,4.4351]
[1732645795667,20.68119785,225.48,225.37,4.4371]
[1732645795966,20.68119785,225.48,225.28,15.7792]
[1732645795967,20.68119785,225.39,225.28,15.7792]
[1732645796272,5.0,225.37,225.28,20.218]
[1732645796473,5.0,225.37,225.28,15.7792]
[1732645796697,5.0,225.37,225.32,20.68119785]
[1732645796858,5.0,225.37,225.28,20.218]
[1732645797060,5.0,225.35,225.28,20.218]
[1732645797684,5.0,225.35,225.28,4.4388]
[1732645797996,25.68119785,225.38,225.18,15.66849]
[1732645798183,5.0,225.42,225.24,5.0]
[1732645798361,5.56967175,225.45,225.29,20.68119785]
[1732645798362,5.0,225.34,225.29,20.68119785]
[1732645798559,5.0,225.36,225.18,15.543]
[1732645798774,5.0,225.36,225.33,20.68119785]
[1732645798981,5.0,225.36,225.18,15.543]
[1732645799389,5.0,225.36,225.31,20.68119785]
[1732645799566,5.0,225.36,225.3,20.68119785]
[1732645799891,20.68119785,225.35,225.27,4.439]
[1732645800185,5.56967175,225.43,225.17,0.6569479]
[1732645800186,5.0,225.32,225.19,15.5423]
[1732645800392,5.0,225.37,225.19,16.20798351]
[1732645800563,5.0,225.42,225.36,20.68119785]
[1732645800765,5.0,225.42,225.37,20.68119785]
[1732645800995,5.0,225.38,225.29,15.7792]
[1732645801485,5.0,225.37,225.33,20.68119785]
[1732645801684,5.0,225.4,225.35,20.68119785]
[1732645801873,5.0,225.43,225.31,4.4383]
[1732645802073,5.0,225.4,225.31,4.4383]
[1732645802288,5.0,225.38,225.29,20.2178]
[1732645802985,5.0,225.38,225.36,20.68119785]
[1732645803178,5.0,225.38,225.35,20.68119785]
[1732645803382,5.0,225.4,225.36,20.68119785]
[1732645803690,5.0,225.35,225.29,36.46039785]
[1732645803877,5.0,225.31,225.26,20.68119785]
[1732645804084,20.68119785,225.29,225.21,26.189]
[1732645804391,5.0,225.26,225.22,20.68119785]
[1732645804686,5.0,225.24,225.18,4.4407]
[1732645804876,5.0,225.28,225.18,4.4407]
[1732645805081,5.0,225.32,225.18,4.4407]
[1732645805378,5.0,225.28,225.18,15.5429]
[1732645805581,5.0,225.26,225.18,4.4407]
[1732645805885,5.0,225.25,225.18,4.4407]
[1732645806198,12.5847,225.39,225.18,4.4407]
[1732645806199,5.0,225.29,225.18,4.4407]
[1732645806366,5.0,225.27,225.18,4.4407]
[1732645806571,5.0,225.31,225.26,20.68119785]
[1732645806871,5.0,225.33,225.29,20.68119785]
[1732645807067,5.0,225.31,225.29,20.68119785]
[1732645807284,5.0,225.31,225.28,20.68119785]
[1732645807469,12.16887721,225.42,225.25,20.68119785]
[1732645807470,5.0,225.29,225.25,20.68119785]
[1732645807797,5.0,225.33,225.28,20.68119785]
[1732645808098,5.0,225.48,225.23,6.1221]
[1732645808099,5.0,225.38,225.32,20.68119785]
[1732645808390,92.1692,225.54,225.24,20.0664]
[1732645808391,5.0,225.44,225.33,20.0]
[1732645808575,20.68119785,225.48,225.41,20.68119785]
[1732645808894,20.68119785,225.44,225.37,26.80329785]
[1732645809065,5.0,225.42,225.3,6.1221]
[1732645809264,5.0,225.45,225.34,43.776884]
[1732645809470,11.0832,225.57,225.34,43.776884]
[1732645809471,5.0,225.47,225.34,43.776884]
[1732645809777,5.0,225.49,225.36,23.776884]
[1732645809969,5.0,225.49,225.38,23.776884]
[1732645810171,5.0,225.51,225.47,20.68119785]
[1732645810487,5.0,225.48,225.41,20.68119785]
[1732645810670,25.68119785,225.48,225.41,20.68119785]
[1732645810988,5.0,225.46,225.37,4.4371]
[1732645811186,5.0,225.42,225.35,20.0641]
[1732645811394,5.0,225.49,225.35,31.1579]
[1732645811571,5.0,225.51,225.36,23.776884]
[1732645811775,5.0,225.55,225.37,0.12549]
[1732645812086,20.68119785,225.48,225.41,20.68119785]
[1732645812494,1.4928,225.6,225.47,20.68119785]
[1732645812495,25.68119785,225.54,225.47,20.68119785]
[1732645812987,5.0,225.51,225.39,23.776884]
[1732645813398,5.0,225.56,225.39,23.776884]
[1732645813575,5.0,225.6,225.44,23.776884]
[1732645813770,5.0,225.64,225.48,39.403584]
[1732645814074,5.0,225.69,225.62,20.68119785]
[1732645814290,5.72320966,225.68,225.59,4.4326]
[1732645814491,0.72320966,225.68,225.65,20.68119785]
[1732645814875,5.0,225.66,225.59,4.4326]
[1732645815086,5.0,225.6,225.49,10.5568]
[1732645815592,5.15420966,225.68,225.49,10.5568]
[1732645815593,0.72320966,225.68,225.51,0.12549]
[1732645815799,0.72320966,225.68,225.54,24.027864]
[1732645815974,5.0,225.65,225.58,20.68119785]
[1732645816293,20.68119785,225.62,225.55,25.11479785]
[1732645816492,5.0,225.67,225.55,4.4336]
[1732645816801,0.72320966,225.68,225.56,23.776884]
[1732645817376,0.72320966,225.68,225.6,23.776884]
[1732645817683,5.0,225.74,225.6,23.776884]
[1732645817684,25.68119785,225.74,225.67,20.68119785]
[1732645817881,20.68119785,225.69,225.63,23.0451]
[1732645818082,5.0,225.7,225.63,43.72629785]
[1732645818083,25.68119785,225.7,225.63,43.72629785]
[1732645818282,5.0,225.7,225.64,20.68119785]
[1732645818494,20.68119785,225.69,225.63,23.0451]
[1732645818793,5.0,225.7,225.63,16.5716]
[1732645818996,5.0,225.72,225.63,21.0035]
[1732645819175,5.0,225.69,225.63,16.5716]
[1732645819502,5.0,225.67,225.59,4.4327]
[1732645819695,20.68119785,225.65,225.59,4.4327]
[1732645820375,5.0,225.67,225.61,20.68119785]
[1732645820876,5.0,225.69,225.63,20.68119785]
[1732645821101,25.68119785,225.72,225.65,20.68119785]
[1732645821276,20.68119785,225.68,225.59,4.4327]
[1732645821471,25.68119785,225.7,225.63,20.68119785]
[1732645821702,5.0,225.7,225.63,20.68119785]
[1732645821875,5.0,225.65,225.59,20.68119785]
[1732645822077,11.0736,225.77,225.56,21.0049]
[1732645822078,5.0,225.63,225.56,16.5716]
[1732645822384,5.0,225.59,225.51,6.4735]
[1732645822581,5.0,225.61,225.51,10.9077]
[1732645823295,5.0,225.64,225.6,20.68119785]
[1732645823497,5.0,225.66,225.61,20.68119785]
[1732645823896,25.68119785,225.68,225.61,20.68119785]
[1732645824192,5.0,225.66,225.63,20.68119785]
[1732645824505,5.0,225.59,225.51,6.4735]
[1732645824877,5.0,225.59,225.51,10.9077]
[1732645825200,5.0,225.59,225.51,6.4735]
[1732645825579,5.0,225.61,225.51,10.9078]
[1732645825777,5.0,225.58,225.53,20.68119785]
[1732645825990,5.0,225.55,225.51,6.4735]
[1732645826296,5.0,225.57,225.51,27.15469785]
[1732645826497,5.0,225.57,225.52,20.68119785]
[1732645826876,5.0,225.59,225.55,20.68119785]
[1732645827176,5.0,225.63,225.56,20.68119785]
[1732645827379,5.0,225.6,225.53,20.68119785]
[1732645827599,5.0,225.6,225.54,20.68119785]
[1732645827983,5.0,225.55,225.53,20.68119785]
[1732645828199,5.0,225.58,225.53,20.68119785]
[1732645828507,5.0,225.6,225.54,20.68119785]
[1732645828802,5.0,225.55,225.51,20.68119785]
[1732645829104,5.0,225.52,225.48,16.5716]
[1732645829410,20.68119785,225.61,225.4,11.091]
[1732645829411,5.0,225.47,225.41,20.68119785]
[1732645829580,5.0,225.47,225.4,16.5716]
[1732645829784,5.0,225.47,225.43,20.68119785]
[1732645830000,5.0,225.47,225.45,20.68119785]
[1732645830310,5.0,225.45,225.42,20.68119785]
[1732645830481,5.0,225.45,225.44,20.68119785]
[1732645830677,5.0,225.47,225.44,20.68119785]
[1732645830877,5.0,225.47,225.45,20.68119785]
[1732645831134,5.0,225.47,225.42,20.68119785]
[1732645831282,5.0,225.45,225.43,20.68119785]
[1732645831484,5.0,225.45,225.44,20.68119785]
[1732645832013,5.0,225.45,225.43,20.68119785]
[1732645832209,5.0,225.45,225.44,20.68119785]
[1732645832521,4.4346,225.5,225.44,20.68119785]
[1732645832522,5.0,225.5,225.44,20.68119785]
[1732645832808,5.0,225.5,225.46,20.68119785]
[1732645832995,5.0,225.5,225.47,20.68119785]
[1732645833198,5.0,225.5,225.48,20.68119785]
[1732645833405,5.0,225.5,225.47,20.68119785]
[1732645833613,1.4928,225.56,225.49,20.68119785]
[1732645833614,5.0,225.52,225.49,20.68119785]
[1732645833912,5.0,225.52,225.51,20.68119785]
[1732645834084,5.0,225.54,225.51,20.68119785]
[1732645834285,5.0,225.54,225.5,20.68119785]
[1732645834592,5.0,225.52,225.49,20.68119785]
[1732645835107,5.0,225.48,225.45,20.68119785]
[1732645835309,5.0,225.48,225.46,20.68119785]
[1732645835513,5.0,225.5,225.47,20.68119785]
[1732645835687,5.0,225.5,225.48,20.68119785]
[1732645836511,5.0,225.5,225.47,20.68119785]
[1732645836719,5.0,225.5,225.46,20.68119785]
[1732645837718,5.0,225.5,225.47,20.68119785]
[1732645837890,5.0,225.5,225.48,20.68119785]
[1732645838092,5.0,225.54,225.49,20.68119785]
[1732645838303,5.0,225.54,225.53,20.68119785]
[1732645838498,5.0,225.54,225.52,20.68119785]
[1732645839205,5.0,225.54,225.53,20.68119785]
[1732645840120,5.0,225.58,225.53,20.68119785]
[1732645840317,5.0,225.58,225.48,6.625]
[1732645840318,5.0,225.6,225.57,20.68119785]
[1732645841503,5.0,225.58,225.56,20.68119785]
[1732645841711,5.0,225.58,225.52,4.434]
[1732645841712,5.0,225.58,225.52,20.68119785]
[1732645841910,5.0,225.54,225.48,27.30619785]
[1732645842121,4.4327,225.6,225.46,20.68119785]
[1732645842122,5.0,225.5,225.46,20.68119785]
[1732645842422,5.0,225.52,225.47,20.68119785]
[1732645842819,5.0,225.5,225.47,20.68119785]
[1732645843021,5.0,225.5,225.46,20.68119785]
[1732645843423,5.0,225.5,225.45,20.68119785]
[1732645843610,5.0,225.5,225.46,20.68119785]
[1732645844022,5.0,225.5,225.47,20.68119785]
[1732645845532,5.0,225.5,225.46,20.68119785]
[1732645845727,5.0,225.46,225.4,36.70769785]
[1732645845927,5.0,225.44,225.39,20.68119785]
[1732645846302,5.0,225.44,225.4,20.68119785]
[1732645847495,5.0,225.44,225.39,20.68119785]
[1732645847701,5.0,225.44,225.4,20.68119785]
[1732645848226,5.0,225.44,225.39,20.68119785]
[1732645848438,5.0,225.39,225.36,20.68119785]
[1732645848729,20.68119785,225.5,225.34,16.0265]
[1732645848730,5.0,225.42,225.38,20.68119785]
[1732645848906,5.0,225.42,225.39,20.68119785]
[1732645849105,5.0,225.42,225.38,20.68119785]
[1732645849730,5.0,225.44,225.41,20.68119785]
[1732645850028,5.0,225.42,225.34,4.4377]
[1732645850207,5.0,225.44,225.38,20.68119785]
[1732645850404,5.0,225.44,225.35,4.8213249]
[1732645850405,5.0,225.44,225.39,20.68119785]
[1732645850622,5.0,225.44,225.38,20.68119785]
[1732645851234,5.0,225.44,225.39,20.68119785]
[1732645851728,5.0,225.44,225.41,20.68119785]
[1732645851930,5.0,225.49,225.43,20.68119785]
[1732645852146,5.0,225.49,225.45,20.68119785]
[1732645852429,5.0,225.49,225.46,20.68119785]
[1732645852725,5.0,225.49,225.4,23.776884]
[1732645852726,5.0,225.49,225.44,20.68119785]
[1732645852909,5.0,225.47,225.42,20.68119785]
[1732645853103,5.0,225.47,225.35,0.3838249]
[1732645853104,5.0,225.41,225.37,20.68119785]
[1732645853429,5.0,225.41,225.35,0.3838249]
[1732645853803,5.0,225.41,225.36,20.68119785]
[1732645854009,5.0,225.46,225.4,20.68119785]
[1732645854206,5.0,225.48,225.43,20.68119785]
[1732645854429,5.0,225.5,225.46,20.68119785]
[1732645854734,5.0,225.5,225.47,20.68119785]
[1732645854906,5.0,225.48,225.4,23.776884]
[1732645855112,5.0,225.46,225.44,20.68119785]
[1732645855705,5.0,225.46,225.45,20.68119785]
[1732645855906,5.0,225.48,225.45,20.68119785]
[1732645856431,5.0,225.46,225.45,20.68119785]
[1732645856635,5.0,225.46,225.43,20.68119785]
[1732645856839,5.0,225.46,225.44,20.68119785]
[1732645857144,5.0,225.46,225.35,11.4776249]
[1732645857145,5.0,225.44,225.39,20.68119785]
[1732645857338,5.0,225.44,225.41,20.68119785]
[1732645858031,5.0,225.44,225.42,20.68119785]
[1732645858219,5.0,225.44,225.43,20.68119785]
[1732645858426,5.0,225.49,225.43,20.68119785]
[1732645858613,5.0,225.49,225.47,20.68119785]
[1732645859413,5.0,225.49,225.46,20.68119785]
[1732645860028,5.0,225.49,225.45,20.68119785]
[1732645860435,5.0,225.49,225.46,20.68119785]
[1732645860737,5.0,225.52,225.48,20.68119785]
[1732645861840,5.0,225.52,225.44,6.2689]
[1732645861841,5.0,225.57,225.51,20.68119785]
[1732645862030,5.0,225.57,225.52,20.68119785]
[1732645862337,5.0,225.57,225.55,20.68119785]
[1732645862542,5.0,225.51,225.47,20.68119785]
[1732645862712,5.0,225.51,225.46,20.68119785]
[1732645862917,5.0,225.49,225.45,20.68119785]
[1732645863118,5.0,225.47,225.44,6.2689]
[1732645863347,5.0,225.49,225.44,26.95009785]
[1732645863646,5.0,225.51,225.44,10.7046]
[1732645863822,5.0,225.51,225.45,23.776884]
[1732645864019,5.0,225.51,225.44,4.4357]
[1732645864436,5.0,225.53,225.45,23.776884]
[1732645864621,5.0,225.53,225.48,20.68119785]
[1732645864820,5.0,225.51,225.49,20.68119785]
[1732645865025,5.0,225.54,225.48,20.68119785]
[1732645865219,5.0,225.51,225.48,20.68119785]
[1732645865827,5.0,225.55,225.5,20.68119785]
[1732645866024,5.0,225.57,225.54,20.68119785]
[1732645866229,5.0,225.55,225.52,20.68119785]
[1732645866733,5.0,225.54,225.5,20.68119785]
[1732645866938,5.0,225.54,225.51,20.68119785]
[1732645867643,5.0,225.54,225.52,20.68119785]
[1732645867826,5.0,225.59,225.53,20.68119785]
[1732645868030,5.0,225.61,225.58,20.68119785]
[1732645868331,5.0,225.65,225.6,20.68119785]
[1732645868528,5.0,225.65,225.64,20.68119785]
[1732645868748,5.0,225.65,225.63,20.68119785]
[1732645869246,5.0,225.65,225.64,20.68119785]
[1732645869438,5.0,225.65,225.62,20.68119785]
[1732645869646,5.0,225.59,225.52,20.68119785]
[1732645869834,25.68119785,225.57,225.51,6.2689]
[1732645870143,5.0,225.57,225.51,6.2689]
[1732645870449,5.0,225.55,225.51,26.95009785]
[1732645870654,5.0,225.53,225.48,20.68119785]
[1732645870827,5.0,225.53,225.44,6.2689]
[1732645870828,5.0,225.55,225.52,20.68119785]
[1732645871031,5.0,225.55,225.51,20.68119785]
[1732645871730,5.0,225.55,225.5,20.68119785]
[1732645872447,5.0,225.6,225.54,20.68119785]
[1732645872655,5.0,225.6,225.58,20.68119785]
[1732645872944,5.0,225.6,225.46,4.4353]
[1732645872945,5.0,225.54,225.46,4.4353]
[1732645873125,5.0,225.54,225.47,23.776884]
[1732645873757,5.0,225.54,225.46,28.212184]
[1732645874047,5.0,225.56,225.53,20.68119785]
[1732645874253,5.0,225.59,225.55,20.68119785]
[1732645874426,5.0,225.59,225.58,20.68119785]
[1732645875451,5.0,225.63,225.58,20.68119785]
[1732645875640,5.0,225.63,225.6,20.68119785]
[1732645875847,5.0,225.59,225.56,20.68119785]
[1732645876182,5.0,225.59,225.54,20.68119785]
[1732645876344,5.0,225.59,225.55,20.68119785]
[1732645876544,4.0,225.55,225.48,23.776884]
[1732645876733,4.0,225.55,225.53,20.68119785]
[1732645877427,4.0,225.58,225.53,20.68119785]
[1732645877850,4.0,225.55,225.51,20.68119785]
[1732645878051,4.0,225.55,225.46,11.0883]
[1732645878052,4.0,225.53,225.49,20.68119785]
[1732645878237,4.0,225.55,225.51,20.68119785]
[1732645878754,4.0,225.52,225.49,20.68119785]
[1732645879256,4.0,225.52,225.5,20.68119785]
[1732645879749,4.0,225.52,225.51,20.68119785]
[1732645880154,4.0,225.52,225.5,20.68119785]
[1732645880355,4.0,225.52,225.51,20.68119785]
[1732645880541,4.0,225.52,225.5,20.68119785]
[1732645880737,11.0811,225.61,225.46,20.68119785]
[1732645880738,4.0,225.5,225.46,20.68119785]
[1732645881142,4.0,225.5,225.49,20.68119785]
[1732645881849,14.11499785,225.55,225.48,20.68119785]
[1732645882162,20.68119785,225.56,225.49,20.68119785]
[1732645882458,20.68119785,225.55,225.48,20.68119785]
[1732645882657,20.68119785,225.56,225.49,20.68119785]
[1732645882855,20.68119785,225.57,225.49,20.68119785]
[1732645883245,25.11459785,225.56,225.49,20.68119785]
[1732645883865,20.68119785,225.52,225.45,36.01939785]
[1732645884068,20.68119785,225.49,225.41,20.68119785]
[1732645884361,20.68119785,225.43,225.35,21.06502275]
[1732645884669,12.42859542,225.48,225.35,0.3838249]
[1732645885260,1.4928,225.48,225.35,0.3838249]
[1732645885438,4.4351,225.47,225.35,0.3838249]
[1732645885764,5.0,225.52,225.46,20.68119785]
[1732645885765,4.4341,225.52,225.46,20.68119785]
[1732645885941,20.68119785,225.49,225.42,20.68119785]
[1732645886152,20.68119785,225.47,225.4,20.68119785]
[1732645886366,20.68119785,225.46,225.38,20.68119785]
[1732645886666,20.68119785,225.46,225.39,20.68119785]
[1732645886865,20.68119785,225.43,225.36,20.68119785]
[1732645887068,20.68119785,225.42,225.35,21.06502275]
[1732645887237,20.68119785,225.5,225.35,21.06502275]
[1732645887238,25.11709785,225.43,225.36,20.68119785]
[1732645887445,20.68119785,225.43,225.36,20.68119785]
[1732645887673,20.68119785,225.45,225.37,20.68119785]
[1732645888237,20.68119785,225.44,225.37,20.68119785]
[1732645888452,20.68119785,225.43,225.36,20.68119785]
[1732645888966,15.5223,225.48,225.4,20.68119785]
[1732645888967,20.68119785,225.46,225.4,20.68119785]
[1732645889466,25.11659785,225.46,225.4,20.68119785]
[1732645889659,4.4354,225.46,225.4,20.68119785]
[1732645890047,4.4354,225.46,225.41,20.68119785]
[1732645890242,25.11549785,225.51,225.44,20.68119785]
[1732645890962,20.68119785,225.48,225.41,20.68119785]
[1732645891463,4.4349,225.48,225.42,20.68119785]
[1732645891765,20.68119785,225.46,225.39,20.68119785]
[1732645891968,20.68119785,225.43,225.36,20.68119785]
[1732645892267,20.68119785,225.43,225.35,0.3838249]
[1732645892268,20.68119785,225.39,225.35,0.3838249]
[1732645892969,20.68119785,225.38,225.35,0.3838249]
[1732645893142,20.68119785,225.39,225.35,0.3838249]
[1732645893349,20.68119785,225.4,225.35,0.3838249]
[1732645893551,4.4365,225.4,225.35,0.3838249]
[1732645893754,25.11769785,225.4,225.35,0.3838249]
[1732645894665,20.68119785,225.39,225.35,0.3838249]
[1732645895262,25.11769785,225.4,225.35,0.3838249]
[1732645896067,4.4365,225.4,225.35,0.3838249]
[1732645896263,20.68119785,225.38,225.35,0.3838249]
[1732645896774,20.68119785,225.37,225.35,0.3838249]
[1732645896974,20.68119785,225.38,225.35,0.3838249]
[1732645897178,20.68119785,225.39,225.35,0.3838249]
[1732645897369,25.11789785,225.39,225.35,0.3838249]
[1732645897968,4.4367,225.39,225.35,0.3838249]
[1732645898289,20.68119785,225.36,225.35,0.3838249]
[1732645899374,25.11849785,225.36,225.35,0.3838249]
[1732645900481,4.4373,225.36,225.35,0.3838249]
[1732645900671,4.4367,225.39,225.35,0.3838249]
[1732645901201,25.11789785,225.39,225.35,0.3838249]
[1732645902184,20.68119785,225.38,225.35,0.3838249]
[1732645902576,20.68119785,225.37,225.35,0.3838249]
[1732645903384,4.4367,225.39,225.35,0.3838249]
[1732645903385,25.11849785,225.36,225.35,0.3838249]
[1732645907275,4.4373,225.36,225.35,0.3838249]
[1732645907674,25.11849785,225.36,225.35,0.3838249]
[1732645907976,30.11849785,225.36,225.35,0.3838249]
[1732645908490,25.11849785,225.36,225.35,0.3838249]
[1732645911185,30.11849785,225.36,225.35,0.3838249]
[1732645911366,30.11849785,225.36,225.35,2.49e-05]
[1732645911569,35.11849785,225.36,225.35,2.49e-05]
[1732645911783,5.0,225.33,225.2,42.78599785]
[1732645911987,20.68119785,225.28,225.2,42.78599785]
[1732645912779,20.68119785,225.29,225.21,20.68119785]
[1732645912972,4.4389,225.28,225.23,20.68119785]
[1732645914672,4.4389,225.28,225.2,22.1048]
[1732645914673,4.4389,225.28,225.22,20.68119785]
[1732645914879,4.4389,225.28,225.22,20.18119785]
[1732645915691,20.68119785,225.26,225.2,42.78599785]
[1732645915884,36.21739785,225.28,225.21,20.68119785]
[1732645916088,20.68119785,225.27,225.2,20.68119785]
[1732645916290,15.5362,225.28,225.14,22.6418]
[1732645916676,20.68119785,225.26,225.19,20.68119785]
[1732645916888,20.68119785,225.22,225.15,20.68119785]
[1732645917083,20.68119785,225.22,225.14,22.6418]
[1732645917084,20.68119785,225.21,225.14,22.6418]
[1732645917293,20.68119785,225.15,225.12,0.5174969]
[1732645917603,15.5404,225.22,225.12,0.5174969]
[1732645917798,4.4402,225.22,225.12,0.5174969]